[Event "WYCC 2018 G16"]
[Site "Halkidiki"]
[Date "2018.10.26"]
[Round "7"]
[White "Muetsch, Annmarie"]
[Black "Beydullayeva, Govhar"]
[Result "1/2-1/2"]
[ECO "C07"]
[WhiteElo "2206"]
[BlackElo "2202"]
[Annotator "NA"]
[PlyCount "53"]
[EventDate "2018.10.20"]
[EventType "swiss"]
[EventCountry "GRE"]
[SourceTitle "playchess.com"]
[Source "ChessBase"]
[SourceQuality "1"]
[TimeControl "40/5400+30:1800+30"]

1. e4 {[%emt 0:00:00]} e6 {[%emt 0:00:00]} 2. d4 {[%emt 0:00:00]} d5 {[%emt 0:00:00]} 3. Nd2 {[%emt 0:00:00]} c5 {[%emt 0:00:14]} 4. exd5 {[%emt 0:00:00]} Qxd5 {[%emt 0:00:07]} 5. Ngf3 {[%emt 0:00:10]} cxd4 {[%emt 0:00:24]} 6. Bc4 {[%emt 0:00:08]} Qd7 {[%emt 0:00:14]} 7. O-O {[%emt 0:00:18]} Nc6 {[%emt 0:00:19]} 8. Nb3 {[%emt 0:00:26]} a6 {[%emt 0:00:16]} 9. Nbxd4 {[%emt 0:00:40]} Nxd4 {[%emt 0:00:05]} 10. Nxd4 {[%emt 0:00:06]} Qc7 {[%emt 0:00:24]} 11. Qe2 {[%emt 0:00:58] LiveBook: 60 Games} Bd6 {[%emt 0:00:28]} 12. h3 Ne7 {[%emt 0:00:15]} 13. c3 $11 {[%emt 0:07:42]} O-O {[%emt 0:01:52]} 14. Re1 {[%emt 0:02:36]} Ng6 {[%emt 0:12:39]} 15. Bb3 {[%emt 0:08:28]} b5 {[%emt 0:12:19]} 16. Bc2 {[%emt 0:03:44]} Bd7 {[%emt 0:03:38]} 17. Qh5 {[%emt 0:07:17]} b4 {[%emt 0:19:18]} 18. Nf3 {[%emt 0:12:17]} Qc5 {[%emt 0:16:17]} 19. Qxc5 {[%emt 0:10:26]} Bxc5 {[%emt 0:00:02]} 20. Be4 {[%emt 0:08:06]} Rab8 {[%emt 0:06:31]} 21. cxb4 {[%emt 0:03:55]} Bxb4 {[%emt 0:02:28]} 22. Rd1 {[%emt 0:01:43]} Rfd8 {[%emt 0:04:57]} 23. Be3 {[%emt 0:02:42]} Be7 {[%emt 0:02:22]} 24. b3 {[%emt 0:03:59]} f5 {[%emt 0:06:42]} 25. Bd3 {[%emt 0:02:34]} Bb5 {[%emt 0:02:52]} 26. Bxb5 {[%emt 0:00:10]} axb5 {[%emt 0:00:40]} 27. Bg5 {[%emt 0:12:58]} 1/2-1/2

[Event "WYCC 2018 G16"]
[Site "Halkidiki"]
[Date "2018.10.26"]
[Round "7"]
[White "Makhija, Aashna"]
[Black "Salonika, Saina"]
[Result "1/2-1/2"]
[ECO "A45"]
[WhiteElo "2197"]
[BlackElo "2093"]
[Annotator "NA"]
[PlyCount "70"]
[EventDate "2018.10.20"]
[EventType "swiss"]
[EventCountry "GRE"]
[SourceTitle "playchess.com"]
[Source "ChessBase"]
[SourceQuality "1"]
[TimeControl "40/5400+30:1800+30"]

1. d4 {[%emt 0:00:00]} Nf6 {[%emt 0:00:00]} 2. Bf4 {[%emt 0:00:00]} g6 {[%emt 0:00:00]} 3. Nc3 {[%emt 0:00:26]} d5 {[%emt 0:00:23]} 4. e3 {[%emt 0:00:49]} Bg7 {[%emt 0:01:23]} 5. h4 {[%emt 0:00:41]} h5 {[%emt 0:02:16]} 6. Be2 {[%emt 0:01:27]} Bf5 {[%emt 0:01:51]} 7. Nf3 {[%emt 0:03:08]} c6 {[%emt 0:03:20]} 8. Ne5 {[%emt 0:02:31]} Nfd7 {[%emt 0:09:32]} 9. Bd3 {[%emt 0:15:07]} Nxe5 {[%emt 0:02:58]} 10. Bxe5 {[%emt 0:06:30]} Bg4 {[%emt 0:06:04]} 11. f3 {[%emt 0:04:49]} Bxe5 {[%emt 0:00:10]} 12. dxe5 {[%emt 0:00:17]} Be6 {[%emt 0:00:21]} 13. Qd2 {[%emt 0:14:25]} Nd7 {[%emt 0:09:45]} 14. f4 {[%emt 0:01:01]} Bg4 {[%emt 0:08:09]} 15. Be2 {[%emt 0:04:26]} Bxe2 {[%emt 0:01:32]} 16. Nxe2 {[%emt 0:04:01]} e6 {[%emt 0:01:25]} 17. O-O-O {[%emt 0:02:20]} Nb6 {[%emt 0:07:54]} 18. Nd4 {[%emt 0:06:26]} Nc4 {[%emt 0:02:06]} 19. Qc3 {[%emt 0:04:52]} Qa5 {[%emt 0:03:32]} 20. Qxa5 {[%emt 0:01:40]} Nxa5 {[%emt 0:00:06]} 21. Nf3 {[%emt 0:05:08]} Ke7 {[%emt 0:05:15]} 22. Ng5 {[%emt 0:02:50]} Nc4 {[%emt 0:06:09]} 23. Rd3 {[%emt 0:02:06]} Rhd8 {[%emt 0:02:32]} 24. b3 {[%emt 0:02:41]} Nb6 {[%emt 0:00:35]} 25. Kd2 {[%emt 0:04:11]} Nd7 {[%emt 0:08:35]} 26. Ke2 {[%emt 0:02:27]} b5 {[%emt 0:01:28]} 27. Ra1 {[%emt 0:05:15]} a5 {[%emt 0:01:15]} 28. a4 {[%emt 0:03:14]} bxa4 {[%emt 0:00:49]} 29. bxa4 {[%emt 0:00:08]} Rab8 {[%emt 0:00:12]} 30. Rc3 {[%emt 0:00:56]} c5 {[%emt 0:00:59]} 31. e4 {[%emt 0:00:50]} Rb4 {[%emt 0:02:01]} 32. exd5 {[%emt 0:00:23]} exd5 {[%emt 0:00:06]} 33. g3 {[%emt 0:00:28]} Rdb8 {[%emt 0:02:53]} 34. Rd3 {[%emt 0:00:48]} Nb6 {[%emt 0:00:27]} 35. Kf3 {[%emt 0:00:33]} Rd8 {[%emt 0:07:15]} 1/2-1/2

[Event "WYCC 2018 G16"]
[Site "Halkidiki"]
[Date "2018.10.26"]
[Round "7"]
[White "Getman, Tatyana"]
[Black "Kvendseth, Thyra"]
[Result "1-0"]
[ECO "E90"]
[WhiteElo "2195"]
[BlackElo "1854"]
[Annotator "NA"]
[PlyCount "67"]
[EventDate "2018.10.20"]
[EventType "swiss"]
[EventCountry "GRE"]
[SourceTitle "playchess.com"]
[Source "ChessBase"]
[SourceQuality "1"]
[TimeControl "40/5400+30:1800+30"]

1. d4 {[%emt 0:00:00]} Nf6 {[%emt 0:00:00]} 2. c4 {[%emt 0:00:00]} g6 {[%emt 0:00:00]} 3. Nc3 {[%emt 0:00:00]} Bg7 {[%emt 0:00:00]} 4. e4 {[%emt 0:00:00]} d6 {[%emt 0:00:00]} 5. Nf3 {[%emt 0:00:00]} O-O {[%emt 0:00:00]} 6. h3 {[%emt 0:00:00]} e5 {[%emt 0:00:04]} 7. d5 {[%emt 0:00:03]} Nh5 {[%emt 0:00:52]} 8. Bg5 {[%emt 0:04:18]} f6 {[%emt 0:08:44]} 9. Be3 {[%emt 0:01:16]} f5 {[%emt 0:09:33]} 10. exf5 {[%emt 0:04:19]} gxf5 {[%emt 0:00:22]} 11. Be2 {[%emt 0:07:18]} f4 {[%emt 0:08:31]} 12. Bc1 {[%emt 0:00:13]} Nf6 {[%emt 0:00:44]} 13. Qc2 {[%emt 0:09:56]} Na6 {[%emt 0:10:46]} 14. a3 {[%emt 0:02:14]} Qe7 {[%emt 0:01:17]} 15. Ng5 {[%emt 0:02:54]} h6 {[%emt 0:17:37]} 16. Nge4 {[%emt 0:00:20]} Bf5 {[%emt 0:02:04]} 17. b4 {[%emt 0:05:39]} c6 {[%emt 0:02:42]} 18. Bd3 {[%emt 0:10:58]} Nxe4 {[%emt 0:02:38]} 19. Bxe4 {[%emt 0:00:37]} Bxe4 {[%emt 0:04:10]} 20. Qxe4 {[%emt 0:00:26]} Rac8 {[%emt 0:01:06]} 21. O-O {[%emt 0:12:00]} Qg5 {[%emt 0:06:27]} 22. Rd1 {[%emt 0:02:00]} Rf6 {[%emt 0:04:18]} 23. Rd3 {[%emt 0:02:11]} Nb8 {[%emt 0:03:36]} 24. Ra2 {[%emt 0:05:32]} Nd7 {[%emt 0:01:42]} 25. dxc6 {[%emt 0:01:43]} Rxc6 {[%emt 0:03:30]} 26. Qd5+ {[%emt 0:02:27]} Kh8 {[%emt 0:01:51]} 27. c5 {[%emt 0:07:38]} Qf5 {[%emt 0:03:34]} 28. Ne4 {[%emt 0:02:55]} Nb6 29. cxb6 {[%emt 0:00:10]} Rxc1+ {[%emt 0:03:40]} 30. Kh2 {[%emt 0:00:05]} Rf8 {[%emt 0:03:09]} 31. bxa7 {[%emt 0:01:40]} Rc6 {[%emt 0:01:28]} 32. Nxd6 {[%emt 0:02:13]} Qd7 {[%emt 0:00:29]} 33. Nf7+ {[%emt 0:00:18]} Qxf7 {[%emt 0:00:48]} 34. Qxf7 {[%emt 0:00:04]} 1-0

[Event "WYCC 2018 G16"]
[Site "Halkidiki"]
[Date "2018.10.26"]
[Round "7"]
[White "Hilario, Aleyla"]
[Black "Cervantes Landeiro, Thalia"]
[Result "1/2-1/2"]
[ECO "C65"]
[WhiteElo "2175"]
[BlackElo "2129"]
[Annotator "NA"]
[PlyCount "84"]
[EventDate "2018.10.20"]
[EventType "swiss"]
[EventCountry "GRE"]
[SourceTitle "playchess.com"]
[Source "ChessBase"]
[SourceQuality "1"]
[TimeControl "40/5400+30:1800+30"]

1. e4 {[%emt 0:00:00]} e5 {[%emt 0:00:00]} 2. Nf3 {[%emt 0:00:00]} Nc6 {[%emt 0:00:00]} 3. Bb5 {[%emt 0:00:00]} Nf6 {[%emt 0:00:00]} 4. d3 {[%emt 0:00:00]} Bc5 {[%emt 0:00:00]} 5. Bxc6 dxc6 6. h3 {[%emt 0:00:31]} a5 {[%emt 0:02:40]} 7. Nc3 {[%emt 0:03:10]} Nd7 {[%emt 0:05:52]} 8. Be3 {[%emt 0:00:08]} f6 {[%emt 0:06:40]} 9. O-O {[%emt 0:00:46]} O-O {[%emt 0:03:33]} 10. Ne2 {[%emt 0:01:19]} Re8 {[%emt 0:02:00]} 11. Ng3 $11 {[%emt 0:03:07]} Bf8 {[%emt 0:03:00]} 12. Qd2 {[%emt 0:02:56]} Nc5 {[%emt 0:01:42]} 13. Rad1 {[%emt 0:00:53]} a4 {[%emt 0:04:24]} 14. a3 {[%emt 0:00:08]} Be6 {[%emt 0:05:58]} 15. Qc3 {[%emt 0:02:07]} Na6 {[%emt 0:04:12]} 16. d4 {[%emt 0:01:06]} exd4 {[%emt 0:02:20]} 17. Nxd4 {[%emt 0:00:09]} Qc8 {[%emt 0:00:46]} 18. f4 {[%emt 0:04:32]} c5 {[%emt 0:05:05]} 19. Nf3 {[%emt 0:03:06]} b5 {[%emt 0:01:12]} 20. f5 {[%emt 0:08:14]} Bc4 {[%emt 0:11:07]} 21. Rfe1 {[%emt 0:00:08]} Bd6 {[%emt 0:01:31]} 22. Bf2 {[%emt 0:00:02]} Bf7 {[%emt 0:02:11]} 23. e5 {[%emt 0:15:47]} b4 {[%emt 0:01:39]} 24. Qd2 {[%emt 0:01:21]} Bxe5 {[%emt 0:07:52]} 25. Nxe5 {[%emt 0:01:01]} Rxe5 {[%emt 0:02:59]} 26. Rxe5 {[%emt 0:01:03]} fxe5 {[%emt 0:00:02]} 27. f6 {[%emt 0:02:10]} gxf6 {[%emt 0:03:14]} 28. Ne4 {[%emt 0:02:23]} Qf5 {[%emt 0:01:02]} 29. Re1 {[%emt 0:01:11]} Kh8 {[%emt 0:02:31]} 30. Bh4 {[%emt 0:00:51]} Rf8 {[%emt 0:08:52]} 31. Bxf6+ {[%emt 0:01:39]} Kg8 {[%emt 0:00:01]} 32. Be7 {[%emt 0:01:09]} Rc8 {[%emt 0:01:35]} 33. Qd3 {[%emt 0:14:50]} c4 {[%emt 0:02:53]} 34. Qg3+ {[%emt 0:05:40]} Bg6 {[%emt 0:02:55]} 35. h4 {[%emt 0:00:02]} Qf4 {[%emt 0:02:07]} 36. Qxf4 {[%emt 0:17:14]} exf4 {[%emt 0:00:01]} 37. Nf6+ {[%emt 0:00:16]} Kf7 {[%emt 0:00:42]} 38. axb4 {[%emt 0:00:03]} Nxb4 {[%emt 0:01:11]} 39. Nxh7 {[%emt 0:00:07]} Bxh7 {[%emt 0:04:41]} 40. Bxb4 {[%emt 0:00:00]} Bxc2 {[%emt 0:00:00]} 41. Rf1 {[%emt 0:00:33]} Bd3 {[%emt 0:03:45]} 42. Rxf4+ {[%emt 0:00:10]} Ke6 {[%emt 0:01:31]} 1/2-1/2

[Event "WYCC 2018 G16"]
[Site "Halkidiki"]
[Date "2018.10.26"]
[Round "7"]
[White "Serikbay, Assel"]
[Black "Solozhenkina, Elizaveta"]
[Result "0-1"]
[ECO "E04"]
[WhiteElo "2166"]
[BlackElo "2276"]
[Annotator "NA"]
[PlyCount "122"]
[EventDate "2018.10.20"]
[EventType "swiss"]
[EventCountry "GRE"]
[SourceTitle "playchess.com"]
[Source "ChessBase"]
[SourceQuality "1"]
[TimeControl "40/5400+30:1800+30"]

1. d4 {[%emt 0:00:00]} Nf6 {[%emt 0:00:00]} 2. c4 {[%emt 0:00:00]} e6 {[%emt 0:00:00]} 3. g3 {[%emt 0:00:00]} d5 {[%emt 0:00:14]} 4. Bg2 {[%emt 0:00:21]} dxc4 {[%emt 0:00:09]} 5. Nf3 {[%emt 0:00:28]} a6 {[%emt 0:00:40]} 6. O-O {[%emt 0:03:31]} Nc6 {[%emt 0:00:23]} 7. e3 {[%emt 0:03:36]} Rb8 {[%emt 0:00:25]} 8. Nfd2 {[%emt 0:02:13]} e5 {[%emt 0:02:28]} 9. Bxc6+ {[%emt 0:04:45]} bxc6 {[%emt 0:00:07]} 10. dxe5 {[%emt 0:00:07]} Ng4 {[%emt 0:00:12]} 11. Nxc4 $14 {[%emt 0:05:33] LiveBook: 42 Games} Be6 {[%emt 0:00:40]} 12. Nbd2 {[%emt 0:01:57]} h5 {[%emt 0:00:09]} 13. f3 {[%emt 0:01:20]} Rb4 {[%emt 0:32:47]} 14. fxg4 {[%emt 0:50:40]} Bxc4 {[%emt 0:07:18]} 15. Nxc4 {[%emt 0:00:13]} Qxd1 {[%emt 0:00:13]} 16. Rxd1 {[%emt 0:00:05]} Rxc4 {[%emt 0:00:07]} 17. g5 {[%emt 0:00:52]} Bc5 {[%emt 0:08:22]} 18. Rd3 {[%emt 0:08:21]} h4 {[%emt 0:04:59]} 19. b3 {[%emt 0:01:39]} Re4 {[%emt 0:04:12]} 20. Bb2 {[%emt 0:08:25]} hxg3 {[%emt 0:03:43]} 21. hxg3 {[%emt 0:00:05]} Rxe3 {[%emt 0:04:41]} 22. Rxe3 {[%emt 0:00:05]} Bxe3+ {[%emt 0:00:06]} 23. Kg2 {[%emt 0:00:02]} Bxg5 {[%emt 0:00:58]} 24. Rd1 {[%emt 0:00:58]} Ke7 {[%emt 0:01:02]} 25. Rd4 {[%emt 0:02:52]} Rd8 {[%emt 0:04:15]} 26. Ba3+ {[%emt 0:01:45]} Ke6 {[%emt 0:00:42]} 27. Rc4 {[%emt 0:00:09]} Rd2+ {[%emt 0:00:54]} 28. Kh3 {[%emt 0:00:18]} Rxa2 {[%emt 0:00:48]} 29. Bf8 {[%emt 0:00:05]} g6 {[%emt 0:08:24]} 30. Rxc6+ {[%emt 0:00:07]} Kd7 {[%emt 0:00:08]} 31. Rc3 {[%emt 0:01:42]} Re2 {[%emt 0:01:18]} 32. Rc5 {[%emt 0:01:59]} Be3 {[%emt 0:02:46]} 33. Ra5 {[%emt 0:01:25]} Bf2 {[%emt 0:04:37]} 34. Bh6 {[%emt 0:00:43]} Bb6 {[%emt 0:00:27]} 35. Rxa6 {[%emt 0:00:05]} Rxe5 {[%emt 0:00:04]} 36. Bf8 {[%emt 0:00:45]} Re8 {[%emt 0:02:16]} 37. Bg7 {[%emt 0:00:38]} Re3 {[%emt 0:00:30]} 38. b4 {[%emt 0:00:32]} Rb3 {[%emt 0:00:24]} 39. Ra4 {[%emt 0:00:09]} Kc6 {[%emt 0:05:26]} 40. Ra8 {[%emt 0:00:00]} Kd7 {[%emt 0:00:00]} 41. Ra4 {[%emt 0:06:48]} Ke6 {[%emt 0:13:33]} 42. Bh6 {[%emt 0:03:19]} f6 {[%emt 0:00:07]} 43. Bd2 {[%emt 0:04:26]} g5 {[%emt 0:00:57]} 44. Be1 {[%emt 0:03:28]} Kf5 {[%emt 0:01:54]} 45. Ra2 {[%emt 0:02:00]} Bd4 {[%emt 0:01:03]} 46. Rc2 {[%emt 0:04:04]} Be5 {[%emt 0:03:38]} 47. Kg2 {[%emt 0:03:17]} Ke4 {[%emt 0:03:01]} 48. Re2+ {[%emt 0:01:39]} Kd3 {[%emt 0:00:21]} 49. Rd2+ {[%emt 0:02:37]} Ke3 {[%emt 0:00:29]} 50. Ra2 {[%emt 0:00:27]} g4 {[%emt 0:08:18]} 51. Bf2+ {[%emt 0:01:49]} Kd3 {[%emt 0:00:39]} 52. Be1 {[%emt 0:00:28]} Rb2+ {[%emt 0:00:37]} 53. Rxb2 {[%emt 0:00:04]} Bxb2 {[%emt 0:00:02]} 54. b5 {[%emt 0:00:35]} Bc3 {[%emt 0:00:22]} 55. Bf2 {[%emt 0:00:06]} Bd4 {[%emt 0:00:03]} 56. Be1 {[%emt 0:00:04]} Kc4 {[%emt 0:00:21]} 57. Ba5 {[%emt 0:00:39]} Bb6 {[%emt 0:00:05]} 58. Bd2 {[%emt 0:00:41]} Kxb5 {[%emt 0:00:10]} 59. Bc3 {[%emt 0:00:02]} f5 {[%emt 0:00:04]} 60. Kf1 {[%emt 0:00:03]} Kc4 {[%emt 0:00:04]} 61. Be5 {[%emt 0:00:07]} Kd3 {[%emt 0:00:18]} 0-1

[Event "WYCC 2018 G16"]
[Site "Halkidiki"]
[Date "2018.10.26"]
[Round "7"]
[White "Peycheva, Gergana"]
[Black "Kucharska, Honorata"]
[Result "0-1"]
[ECO "A50"]
[WhiteElo "2152"]
[BlackElo "2073"]
[Annotator "NA"]
[PlyCount "124"]
[EventDate "2018.10.20"]
[EventType "swiss"]
[EventCountry "GRE"]
[SourceTitle "playchess.com"]
[Source "ChessBase"]
[SourceQuality "1"]
[TimeControl "40/5400+30:1800+30"]

1. d4 {[%emt 0:00:00]} Nf6 {[%emt 0:00:00]} 2. c4 {[%emt 0:00:00]} g6 {[%emt 0:00:00]} 3. f3 {[%emt 0:00:30]} e6 {[%emt 0:00:40]} 4. e4 {[%emt 0:02:02]} c5 {[%emt 0:00:32]} 5. d5 {[%emt 0:04:26]} d6 {[%emt 0:00:38]} 6. Nc3 {[%emt 0:03:05]} Bg7 {[%emt 0:00:59]} 7. Be3 {[%emt 0:02:38]} exd5 {[%emt 0:02:07]} 8. cxd5 {[%emt 0:01:56]} O-O {[%emt 0:00:54]} 9. Bd3 {[%emt 0:05:05]} a6 {[%emt 0:01:46]} 10. a4 {[%emt 0:02:12]} Nbd7 {[%emt 0:00:46]} 11. Nge2 {[%emt 0:02:23]} Ne5 {[%emt 0:03:20]} 12. O-O {[%emt 0:03:47]} Bd7 {[%emt 0:07:32]} 13. h3 {[%emt 0:06:23]} Rb8 {[%emt 0:03:02]} 14. f4 {[%emt 0:03:51]} Nxd3 {[%emt 0:01:57]} 15. Qxd3 {[%emt 0:00:13]} Re8 {[%emt 0:00:30]} 16. Ng3 {[%emt 0:04:54]} Rc8 {[%emt 0:06:52]} 17. e5 {[%emt 0:07:33]} dxe5 {[%emt 0:02:33]} 18. fxe5 {[%emt 0:00:19]} Rxe5 {[%emt 0:00:08]} 19. Bf4 {[%emt 0:00:38]} Re8 {[%emt 0:00:42]} 20. Qf3 {[%emt 0:05:53]} h6 {[%emt 0:05:47]} 21. Nge4 {[%emt 0:10:16]} Nxe4 {[%emt 0:07:36]} 22. Nxe4 {[%emt 0:00:05]} Rxe4 {[%emt 0:02:27]} 23. Qxe4 {[%emt 0:00:51]} f5 {[%emt 0:00:41]} 24. Qc2 {[%emt 0:03:37]} Qf6 {[%emt 0:01:38]} 25. Kh1 {[%emt 0:08:01]} c4 {[%emt 0:04:01]} 26. Rab1 {[%emt 0:02:10]} Qd4 {[%emt 0:01:59]} 27. Bg3 {[%emt 0:04:02]} Qxd5 {[%emt 0:00:59]} 28. Rbd1 {[%emt 0:01:38]} Qf7 {[%emt 0:00:21]} 29. Rd6 {[%emt 0:01:42]} Bf8 {[%emt 0:02:50]} 30. Rd2 {[%emt 0:01:20]} Bc6 {[%emt 0:03:13]} 31. Be5 {[%emt 0:02:30]} Re8 {[%emt 0:02:56]} 32. Re2 {[%emt 0:01:08]} b5 {[%emt 0:01:24]} 33. axb5 {[%emt 0:00:40]} axb5 {[%emt 0:00:05]} 34. Qc3 {[%emt 0:01:23]} b4 {[%emt 0:01:24]} 35. Qg3 {[%emt 0:01:59]} Kh7 {[%emt 0:01:24]} 36. Rd2 {[%emt 0:02:10]} Bc5 {[%emt 0:02:41]} 37. Bd6 {[%emt 0:01:52]} Re3 {[%emt 0:01:16]} 38. Qh4 {[%emt 0:01:23]} g5 {[%emt 0:00:12]} 39. Qg4 {[%emt 0:03:23]} Bxd6 {[%emt 0:03:29]} 40. Rxd6 {[%emt 0:00:00]} Be4 {[%emt 0:00:00]} 41. h4 {[%emt 0:09:37]} Qe7 {[%emt 0:13:25]} 42. Qd1 {[%emt 0:03:52]} Bd3 {[%emt 0:00:31]} 43. Rd4 {[%emt 0:01:51]} g4 {[%emt 0:00:32]} 44. Qd2 {[%emt 0:07:16]} Re2 {[%emt 0:05:58]} 45. Qf4 {[%emt 0:01:55]} Be4 {[%emt 0:04:05]} 46. Rf2 {[%emt 0:03:32]} Re1+ {[%emt 0:04:12]} 47. Rf1 {[%emt 0:00:04]} Rxf1+ {[%emt 0:01:45]} 48. Qxf1 {[%emt 0:00:04]} c3 {[%emt 0:00:28]} 49. bxc3 {[%emt 0:01:08]} bxc3 {[%emt 0:00:05]} 50. Qf2 {[%emt 0:03:01]} c2 {[%emt 0:00:28]} 51. Rc4 {[%emt 0:00:21]} Qd6 {[%emt 0:03:09]} 52. h5 {[%emt 0:01:47]} Kg7 {[%emt 0:00:46]} 53. Qe3 {[%emt 0:00:59]} g3 {[%emt 0:00:25]} 54. Qc3+ {[%emt 0:00:30]} Kf7 {[%emt 0:00:11]} 55. Rc7+ {[%emt 0:00:34]} Ke6 {[%emt 0:00:39]} 56. Qb3+ {[%emt 0:01:23]} Kf6 {[%emt 0:00:44]} 57. Qc3+ {[%emt 0:00:51]} Kg5 {[%emt 0:01:10]} 58. Rg7+ {[%emt 0:01:24]} Kxh5 {[%emt 0:00:41]} 59. Rxg3 {[%emt 0:00:27]} c1=Q+ {[%emt 0:00:16]} 60. Qxc1 {[%emt 0:00:06]} Qxg3 {[%emt 0:00:05]} 61. Qd1+ {[%emt 0:00:08]} Qg4 {[%emt 0:00:10]} 62. Qd2 {[%emt 0:00:20]} Qxg2+ {[%emt 0:00:20]} 0-1

[Event "WYCC 2018 G16"]
[Site "Halkidiki"]
[Date "2018.10.26"]
[Round "7"]
[White "Schulze, Lara"]
[Black "Jarocka, Liwia"]
[Result "0-1"]
[ECO "B56"]
[WhiteElo "2122"]
[BlackElo "1990"]
[Annotator "NA"]
[PlyCount "128"]
[EventDate "2018.10.20"]
[EventType "swiss"]
[EventCountry "GRE"]
[SourceTitle "playchess.com"]
[Source "ChessBase"]
[SourceQuality "1"]
[TimeControl "40/5400+30:1800+30"]

1. e4 {[%emt 0:00:00]} c5 {[%emt 0:00:00]} 2. Nf3 {[%emt 0:00:00]} d6 {[%emt 0:00:00]} 3. d4 {[%emt 0:00:00]} cxd4 {[%emt 0:00:00]} 4. Nxd4 {[%emt 0:00:00]} Nf6 {[%emt 0:00:00]} 5. Nc3 {[%emt 0:00:00]} Bd7 {[%emt 0:00:03]} 6. Bg5 {[%emt 0:00:57]} e6 {[%emt 0:00:26]} 7. Qd2 {[%emt 0:01:32]} a6 {[%emt 0:00:30]} 8. f4 {[%emt 0:05:03]} h6 {[%emt 0:06:41]} 9. Bxf6 {[%emt 0:09:56]} Qxf6 {[%emt 0:00:43]} 10. O-O-O {[%emt 0:04:39]} Nc6 {[%emt 0:01:10]} 11. Nf3 {[%emt 0:02:27]} Qd8 {[%emt 0:00:13]} 12. e5 {[%emt 0:04:56]} d5 {[%emt 0:12:07]} 13. f5 {[%emt 0:03:55]} Qa5 {[%emt 0:02:08]} 14. Kb1 {[%emt 0:12:17]} O-O-O {[%emt 0:00:43]} 15. fxe6 {[%emt 0:09:43]} Bxe6 {[%emt 0:00:53]} 16. Ne2 {[%emt 0:01:29]} Bb4 {[%emt 0:13:05]} 17. Qc1 {[%emt 0:06:46]} d4 {[%emt 0:08:46]} 18. a3 {[%emt 0:00:10]} Qd5 {[%emt 0:09:05]} 19. c4 {[%emt 0:06:59]} Qe4+ {[%emt 0:06:43]} 20. Ka1 {[%emt 0:00:35]} Be7 {[%emt 0:01:25]} 21. Ng3 {[%emt 0:05:43]} Qe3 {[%emt 0:01:09]} 22. Bd3 {[%emt 0:06:53]} Qxc1+ {[%emt 0:02:21]} 23. Rxc1 {[%emt 0:00:01]} g6 {[%emt 0:00:42]} 24. b4 {[%emt 0:03:19]} Bg4 {[%emt 0:00:56]} 25. Rce1 {[%emt 0:01:54]} h5 {[%emt 0:04:19]} 26. Nf1 {[%emt 0:08:40]} Rhe8 {[%emt 0:00:30]} 27. N1d2 {[%emt 0:00:45]} Bf8 {[%emt 0:01:10]} 28. Be4 {[%emt 0:01:08]} Bg7 {[%emt 0:03:41]} 29. Bxc6 {[%emt 0:01:02]} bxc6 {[%emt 0:00:05]} 30. Ng5 {[%emt 0:01:41]} Re7 {[%emt 0:04:54]} 31. Ka2 {[%emt 0:00:51]} Bxe5 {[%emt 0:06:20]} 32. h3 {[%emt 0:00:55]} Bf5 {[%emt 0:00:22]} 33. Nxf7 {[%emt 0:00:54]} Rxf7 {[%emt 0:00:48]} 34. Rxe5 {[%emt 0:00:04]} Bd3 {[%emt 0:00:23]} 35. Nf3 {[%emt 0:01:36]} Bxc4+ {[%emt 0:00:14]} 36. Kb2 {[%emt 0:00:02]} Bd5 {[%emt 0:04:45]} 37. Nxd4 {[%emt 0:00:58]} Bxg2 {[%emt 0:01:27]} 38. Rd1 {[%emt 0:00:23]} Rfd7 {[%emt 0:00:23]} 39. Kc3 {[%emt 0:00:07]} Bxh3 {[%emt 0:00:36]} 40. Rc5 {[%emt 0:00:00]} Kb7 {[%emt 0:00:00]} 41. Rh1 {[%emt 0:08:35]} Rxd4 {[%emt 0:00:47]} 42. Rxh3 {[%emt 0:00:12]} R8d5 {[%emt 0:01:25]} 43. Re3 {[%emt 0:02:37]} Rd1 {[%emt 0:02:35]} 44. Re7+ {[%emt 0:02:05]} Kb6 {[%emt 0:00:18]} 45. Re6 {[%emt 0:00:24]} Rc1+ {[%emt 0:04:30]} 46. Kb2 {[%emt 0:00:57]} Rcxc5 {[%emt 0:00:15]} 47. bxc5+ {[%emt 0:00:02]} Rxc5 {[%emt 0:00:15]} 48. Rxg6 {[%emt 0:00:05]} h4 {[%emt 0:00:21]} 49. Rh6 {[%emt 0:00:04]} Rc4 {[%emt 0:00:06]} 50. Kb3 {[%emt 0:01:17]} Rg4 {[%emt 0:00:23]} 51. a4 {[%emt 0:00:51]} a5 {[%emt 0:00:47]} 52. Ka3 {[%emt 0:00:47]} Rg3+ {[%emt 0:00:06]} 53. Kb2 {[%emt 0:00:05]} h3 {[%emt 0:00:06]} 54. Rh5 {[%emt 0:00:39]} Rf3 {[%emt 0:01:14]} 55. Kc2 {[%emt 0:00:28]} Rf2+ {[%emt 0:01:36]} 56. Kb3 {[%emt 0:00:54]} Rh2 {[%emt 0:00:18]} 57. Kc3 {[%emt 0:00:26]} Rh1 {[%emt 0:00:05]} 58. Kb3 {[%emt 0:00:03]} h2 {[%emt 0:00:50]} 59. Kb2 {[%emt 0:00:04]} c5 {[%emt 0:00:07]} 60. Rh6+ {[%emt 0:00:14]} Kc7 {[%emt 0:00:09]} 61. Rh7+ {[%emt 0:00:30]} Kd6 {[%emt 0:00:06]} 62. Rh6+ {[%emt 0:00:05]} Kd5 {[%emt 0:00:20]} 63. Rh5+ {[%emt 0:00:10]} Ke4 {[%emt 0:00:30]} 64. Rxc5 {[%emt 0:02:41]} Rg1 {[%emt 0:00:12]} 0-1